bitfinex-derivatives/quotes_SOLF0:USTF0_20241208
["timestamp","ask_amount","ask_price","bid_price","bid_amount"]
[1733667198104,2.6879,237.0,236.85,15.6885769]
[1733667198404,2.6879,237.0,236.91,2.1089]
[1733667198606,2.6879,237.0,236.92,1.11054223]
[1733667198804,2.6879,237.0,236.91,2.1089]
[1733667199004,2.6879,237.0,236.92,1.11019991]
[1733667199200,2.6879,237.0,236.91,2.1089]
[1733667199409,2.6879,237.0,236.92,1.1101442]
[1733667199600,2.6879,237.0,236.91,2.1089]
[1733667199800,2.6879,237.0,236.92,1.11014428]
[1733667200107,2.6879,237.0,236.91,2.1089]
[1733667200301,2.1085,236.96,236.92,1.1101425]
[1733667200500,2.1085,236.96,236.92,2.1088]
[1733667200900,2.1082,236.99,236.9,1.92]
[1733667201100,2.1082,236.99,236.91,3.45867905]
[1733667201300,2.1082,236.99,236.92,1.11017538]
[1733667201503,2.1082,236.99,236.91,1.2933]
[1733667201504,2.1081,237.0,236.91,1.2933]
[1733667201707,2.1081,237.0,236.92,1.11016759]
[1733667202005,2.1082,236.99,236.93,1.11016759]
[1733667202204,2.1082,236.99,236.94,1.11016759]
[1733667202405,2.1082,236.99,236.91,1.2933]
[1733667202608,1.92,237.05,236.92,3.94133282]
[1733667202803,1.92,237.05,236.93,1.10987051]
[1733667203004,1.92,237.05,236.94,1.10987051]
[1733667203303,1.92,237.05,236.91,1.2933]
[1733667203505,1.92,237.05,236.92,2.1647758]
[1733667203710,1.92,237.05,236.93,3.21831477]
[1733667203910,1.92,237.05,236.93,2.1087]
[1733667204608,1.92,237.05,236.94,1.10945361]
[1733667204807,2.1083,236.98,236.93,2.1087]
[1733667205000,2.1083,236.98,236.94,1.1094575]
[1733667205202,2.1083,236.98,236.93,2.1087]
[1733667205398,2.1083,236.98,236.94,1.10952351]
[1733667205598,2.1084,236.96,236.91,1.2933]
[1733667205804,2.1084,236.96,236.92,2.16476636]
[1733667206006,2.1084,236.96,236.86,1.35572854]
[1733667206007,2.1083,236.98,236.93,1.10959245]
[1733667206206,1.92,236.99,236.87,1.92]
[1733667206405,1.92,236.99,236.88,8.44353006]
[1733667206607,1.92,236.99,236.87,1.92]
[1733667206608,1.92,236.99,236.89,8.44353006]
[1733667206806,1.92,236.99,236.9,3.94076866]
[1733667207007,1.92,236.99,236.91,3.94076866]
[1733667207307,1.92,236.99,236.92,1.10963802]
[1733667207608,2.1086,236.95,236.9,2.109]
[1733667207914,2.1086,236.95,236.91,1.11004479]
[1733667208209,2.1086,236.95,236.9,2.109]
[1733667208400,2.1086,236.94,236.91,1.1102167]
[1733667208606,2.1086,236.94,236.9,2.109]
[1733667208799,2.1086,236.94,236.91,1.11029334]
[1733667208999,1.92,236.99,236.92,1.110296]
[1733667209201,2.6588,237.08,236.93,1.110296]
[1733667209202,34.34803611,237.03,236.93,1.110296]
[1733667209401,34.34803611,237.03,236.94,1.110296]
[1733667209611,34.34803611,237.03,236.92,1.92]
[1733667209910,34.34803611,237.03,236.93,1.11047521]
[1733667210109,34.34803611,237.03,236.94,3.21907521]
[1733667210311,34.34803611,237.03,236.95,1.11047521]
[1733667210513,34.34803611,237.03,236.94,2.1086]
[1733667210812,34.34803611,237.03,236.95,1.11060131]
[1733667211012,34.34803611,237.03,236.92,1.92]
[1733667211317,34.34803611,237.03,236.93,3.94298238]
[1733667211508,34.34803611,237.03,236.94,1.11050571]
[1733667211708,34.34803611,237.03,236.95,1.11050571]
[1733667211904,34.34803611,237.03,236.93,2.1087]
[1733667212108,34.34803611,237.03,236.94,1.11048087]
[1733667212412,2.1083,236.98,236.95,1.11048087]
[1733667212607,2.1083,236.98,236.93,2.1087]
[1733667212811,2.1083,236.98,236.94,1.11037509]
[1733667213009,2.1083,236.98,236.93,2.1087]
[1733667213212,2.1083,236.98,236.94,1.11037732]
[1733667213412,2.1083,236.98,236.93,2.1087]
[1733667213613,2.1083,236.98,236.94,1.11031391]
[1733667213905,2.1083,236.98,236.93,2.1087]
[1733667214311,2.1083,236.98,236.94,1.11031719]
[1733667214617,2.1083,236.98,236.93,2.1087]
[1733667214915,2.108,237.01,236.94,1.1102323]
[1733667215114,34.34803611,237.03,236.88,1.92]
[1733667215314,34.34803611,237.03,236.89,8.44622627]
[1733667215507,34.34803611,237.03,236.9,3.94220716]
[1733667215713,34.34803611,237.03,236.91,3.94220716]
[1733667216018,34.34803611,237.03,236.92,3.21901558]
[1733667216209,34.34803611,237.03,236.93,1.11021558]
[1733667216510,34.34803611,237.03,236.88,1.92]
[1733667216719,34.34803611,237.03,236.94,2.1086]
[1733667217614,2.1082,236.99,236.94,2.1086]
[1733667221320,34.34803611,237.03,236.95,1.10948044]
[1733667221518,2.1083,236.98,236.93,2.1087]
[1733667221719,2.1083,236.98,236.94,1.10944468]
[1733667221919,2.1083,236.98,236.95,1.10944468]
[1733667222119,2.1083,236.98,236.93,2.1087]
[1733667222317,2.1083,236.98,236.94,1.10943308]
[1733667222517,34.34803611,237.03,236.95,1.10943308]
[1733667222825,2.1083,236.98,236.94,2.1086]
[1733667223127,2.1083,236.98,236.95,1.10947514]
[1733667223423,2.1083,236.98,236.94,2.1086]
[1733667223623,2.1083,236.98,236.95,1.10948317]
[1733667223821,2.1083,236.98,236.94,2.1086]
[1733667224023,2.1083,236.98,236.95,1.1094988]
[1733667224221,2.1083,236.98,236.94,2.1086]
[1733667224422,2.1083,236.98,236.95,1.10953353]
[1733667224623,2.1083,236.98,236.94,2.1086]
[1733667224825,2.1083,236.98,236.95,1.10950676]
[1733667225127,2.1083,236.98,236.94,2.1086]
[1733667225324,2.1083,236.98,236.95,1.10950894]
[1733667225525,2.1083,236.98,236.94,2.1086]
[1733667225734,2.6588,237.08,236.95,1.10957523]
[1733667225929,1.92,237.07,236.97,2.1083]
[1733667226428,2.1077,237.04,236.97,2.1083]
[1733667226624,1.92,237.07,236.97,2.1083]
[1733667227726,1.92,237.06,236.97,2.1083]
[1733667228130,2.1081,237.01,236.95,2.1084]
[1733667228429,2.1081,237.01,236.96,1.10993344]
[1733667228731,2.1081,237.01,236.95,2.1084]
[1733667228926,2.1081,237.01,236.96,1.10981122]
[1733667229229,2.1081,237.01,236.95,2.1084]
[1733667229421,2.1081,237.01,236.96,1.11004692]
[1733667229626,2.1081,237.01,236.95,2.1084]
[1733667229927,2.1081,237.01,236.96,1.11004897]
[1733667230131,1.92,237.06,236.87,1.35619723]
[1733667230431,1.92,237.06,236.89,1.92]
[1733667230729,2.1084,236.97,236.92,2.1088]
[1733667230925,2.1084,236.97,236.93,1.10993336]
[1733667231126,2.1084,236.97,236.94,1.10993336]
[1733667231326,2.1084,236.97,236.92,2.1088]
[1733667231929,1.92,237.06,236.92,2.1088]
[1733667231930,2.1084,236.96,236.92,2.1088]
[1733667232533,2.1085,236.95,236.91,2.1089]
[1733667232933,2.1085,236.95,236.93,1.11018184]
[1733667233133,2.1085,236.95,236.94,1.11018184]
[1733667234630,2.1084,236.96,236.94,1.11018184]
[1733667234831,1.92,237.01,236.92,2.1088]
[1733667235026,1.92,237.01,236.93,3.9430008]
[1733667235230,1.92,237.01,236.94,1.1105152]
[1733667235432,1.92,237.01,236.95,1.1105152]
[1733667235632,1.92,237.01,236.88,1.35708474]
[1733667235833,1.2762,237.0,236.89,8.44814479]
[1733667236135,2.1088,236.93,236.9,3.94302113]
[1733667236332,2.6168,237.0,236.91,6.05192113]
[1733667236536,2.1085,236.96,236.92,2.16566261]
[1733667236830,2.6168,237.0,236.93,1.11052978]
[1733667237029,2.6168,237.0,236.92,2.1088]
[1733667237030,2.1084,236.97,236.87,1.92]
[1733667237333,2.1084,236.97,236.88,12.95780949]
[1733667237533,2.1084,236.97,236.92,2.1087]
[1733667237730,2.1084,236.96,236.93,1.11066476]
[1733667237932,2.6168,237.0,236.94,1.11066476]
[1733667238129,2.6168,237.0,236.95,1.11066476]
[1733667238330,1.2762,237.0,236.96,1.11066476]
[1733667238630,1.2762,237.0,236.94,2.1086]
[1733667238835,2.1082,236.99,236.95,3.2196998]
[1733667239028,2.1082,236.99,236.96,1.1111998]
[1733667239231,2.1082,236.99,236.95,2.1085]
[1733667239430,2.1082,236.99,236.96,1.11154274]
[1733667239729,2.1082,236.99,236.97,1.11154274]
[1733667239938,2.1082,236.99,236.95,2.1085]
[1733667240134,2.1082,236.99,236.96,1.1115684]
[1733667240336,2.1082,236.99,236.97,1.1115684]
[1733667240531,2.1082,236.99,236.95,2.1085]
[1733667240833,2.1082,236.99,236.96,1.11210725]
[1733667241035,2.1082,236.99,236.97,1.11210725]
[1733667241231,2.1082,236.99,236.98,1.11260961]
[1733667242134,2.1081,237.0,236.98,1.11260961]
[1733667242334,2.1081,237.0,236.95,2.1085]
[1733667242630,2.1081,237.0,236.96,3.95001012]
[1733667242831,2.1081,237.0,236.97,1.11323814]
[1733667243038,2.1081,237.0,236.95,2.1085]
[1733667243232,2.1081,237.0,236.96,2.16835217]
[1733667243434,2.1081,237.0,236.97,1.11327247]
[1733667243739,2.1081,237.0,236.95,2.1085]
[1733667243941,2.1081,237.0,236.96,3.95037187]
[1733667244137,2.1081,237.0,236.97,2.16843282]
[1733667244336,2.1081,237.0,236.98,1.11334648]
[1733667244540,2.1081,237.0,236.95,2.1085]
[1733667244840,2.1081,237.0,236.96,3.95026344]
[1733667245042,2.1081,237.0,236.97,1.11333618]
[1733667245231,1.92,237.04,236.98,1.11333618]
[1733667245432,1.92,237.04,236.93,4.0287]
[1733667245638,1.92,237.04,236.94,8.46224549]
[1733667245837,1.92,237.04,236.95,3.9502131]
[1733667246037,1.92,237.04,236.96,3.95021333]
[1733667246237,1.92,237.04,236.97,1.11331149]
[1733667246541,1.92,237.04,236.98,1.11331149]
[1733667246738,1.92,237.04,236.95,2.1085]
[1733667246937,1.92,237.04,236.96,2.16842632]
[1733667247136,1.92,237.04,236.97,1.11333472]
[1733667247441,1.92,237.04,236.98,1.11333472]
[1733667247637,2.1082,236.99,236.95,2.1085]
[1733667247844,2.1082,236.99,236.96,2.16845536]
[1733667248035,2.1082,236.99,236.97,1.11336008]
[1733667248240,2.1082,236.99,236.98,1.11336008]
[1733667249837,2.1082,236.99,236.98,1.11326368]
[1733667250343,2.1082,236.99,236.94,2.1086]
[1733667250544,2.1082,236.99,236.95,3.94993985]
[1733667250743,2.1082,236.99,236.96,1.11319592]
[1733667250942,2.1082,236.99,236.97,1.11319592]
[1733667251141,2.1082,236.99,236.94,2.1086]
[1733667251337,2.1082,236.99,236.95,3.9503097]
[1733667251542,2.1082,236.99,236.94,2.1086]
[1733667251543,2.1082,236.99,236.96,3.95042803]
[1733667251749,2.1082,236.99,236.97,1.11332809]
[1733667251942,2.1082,236.99,236.98,1.11332809]
[1733667255144,2.1082,236.99,236.95,2.1085]
[1733667255344,2.1082,236.99,236.98,1.11373915]
[1733667255548,2.1081,237.0,236.98,1.11373915]
[1733667255753,2.1081,237.0,236.99,1.11373915]
[1733667257048,2.1081,237.0,236.96,2.1084]
[1733667257244,2.1081,237.0,236.97,2.16862514]
[1733667257450,2.1081,237.0,236.96,2.1084]
[1733667257451,2.1081,237.0,236.98,2.16862514]
[1733667257648,2.1081,237.0,236.99,1.11356297]
[1733667257843,1.353,237.08,236.99,1.11356297]
[1733667258048,1.92,237.07,237.0,1.11366784]
[1733667258350,1.353,237.08,237.01,1.11366784]
[1733667258556,3.273,237.08,237.02,1.11366784]
[1733667258848,2.1077,237.05,237.0,2.108]
[1733667259045,3.273,237.08,237.01,1.11324346]
[1733667259248,3.273,237.08,237.02,1.11324346]
[1733667259448,2.1077,237.04,236.99,2.1081]
[1733667259655,2.1077,237.04,237.0,3.94890481]
[1733667259855,2.1077,237.04,237.01,1.1128725]
[1733667260055,2.1077,237.04,237.02,1.1128725]
[1733667260252,2.1076,237.05,236.98,1.92]
[1733667260458,2.1076,237.05,237.0,2.1081]
[1733667260653,2.1076,237.05,237.01,1.11296416]
[1733667260854,2.1076,237.05,237.02,1.11296416]
[1733667261053,2.1076,237.05,236.98,1.92]
[1733667261260,2.1076,237.05,236.99,6.05690555]
[1733667261458,2.1076,237.05,237.0,3.94880555]
[1733667261658,2.1076,237.05,237.01,1.11283909]
[1733667261858,2.1076,237.05,237.02,1.11283909]
[1733667262059,2.1076,237.05,236.99,2.1081]
[1733667262259,2.1076,237.05,237.0,3.9481736]
[1733667262557,2.1076,237.05,237.01,1.11259433]
[1733667262759,2.1076,237.05,236.99,2.1081]
[1733667262953,2.1076,237.05,237.0,2.16749771]
[1733667263154,2.1076,237.05,237.01,1.11255885]
[1733667263358,2.1076,237.05,237.02,1.11255885]
[1733667263555,2.1076,237.05,236.99,2.1081]
[1733667263761,2.1076,237.05,237.0,6.05568952]
[1733667263951,2.1076,237.05,237.0,2.1081]
[1733667264156,2.1076,237.05,237.01,1.11238975]
[1733667264358,2.1076,237.05,237.0,2.1081]
[1733667264555,2.1076,237.05,237.01,1.11221899]
[1733667264758,1.353,237.08,237.01,1.11221899]
[1733667264759,2.1076,237.06,237.02,1.11221899]
[1733667264954,34.52402771,237.13,236.98,1.92]
[1733667265157,34.52402771,237.13,236.99,8.45527643]
[1733667265459,34.52402771,237.13,237.0,3.94690553]
[1733667265660,34.52402771,237.13,237.01,3.94690553]
[1733667265862,34.52402771,237.13,237.02,1.11220219]
[1733667266062,34.52402771,237.13,237.03,1.11220219]
[1733667266260,2.1074,237.08,237.03,2.1077]
[1733667266562,1.92,237.13,237.03,1.92]
[1733667267564,2.1072,237.1,237.04,3.21911674]
[1733667267768,2.1072,237.1,237.04,2.1077]
[1733667268560,2.1073,237.09,237.04,2.1077]
[1733667269455,2.1073,237.09,237.03,1.92]
[1733667269456,1.92,237.13,237.03,1.92]
[1733667269764,2.1074,237.08,237.03,1.92]
[1733667270565,2.1074,237.08,237.03,4.0278]
[1733667271662,2.1075,237.07,237.03,4.0278]
[1733667272865,2.1076,237.06,237.03,1.92]
[1733667273068,1.92,237.13,237.01,1.92]
[1733667273367,1.92,237.13,237.02,1.11026185]
[1733667273570,2.1078,237.04,237.01,1.92]
[1733667273764,2.1078,237.04,237.02,1.11029226]
[1733667273966,1.92,237.13,237.01,1.92]
[1733667274168,1.92,237.13,237.02,1.11026545]
[1733667274364,1.92,237.13,237.01,1.92]
[1733667274565,2.1076,237.06,237.02,1.11018119]
[1733667274766,2.1076,237.06,237.01,4.028]
[1733667274967,2.1076,237.06,237.02,1.11012689]
[1733667275168,2.1076,237.06,237.01,4.028]
[1733667275369,2.1076,237.06,237.02,1.11008045]
[1733667275567,2.1076,237.06,237.01,4.028]
[1733667275769,2.1076,237.06,237.02,1.11008063]
[1733667275973,2.1076,237.06,237.01,4.028]
[1733667277364,2.1077,237.05,237.01,1.92]
[1733667278772,1.92,237.13,236.98,4.0282]
[1733667278972,1.92,237.13,236.99,1.1098711]
[1733667279271,1.92,237.13,237.0,1.1098711]
[1733667279473,1.92,237.13,236.98,4.0282]
[1733667279670,1.92,237.13,236.99,1.10994996]
[1733667279869,1.92,237.13,236.98,4.0282]
[1733667280173,1.92,237.13,236.99,1.11002755]
[1733667280369,1.92,237.13,236.98,4.0282]
[1733667280674,2.1078,237.04,236.99,1.11003637]
[1733667280971,2.1078,237.04,236.98,4.0282]
[1733667281172,2.1078,237.04,236.99,1.11013886]
[1733667281368,2.1078,237.04,236.98,4.0282]
[1733667281674,2.1078,237.04,236.99,1.11029741]
[1733667281874,2.1078,237.04,236.98,4.0282]
[1733667282172,2.1078,237.04,236.99,1.11029706]
[1733667282374,2.1078,237.04,236.98,4.0282]
[1733667282573,2.1078,237.04,236.99,1.11046555]
[1733667282776,2.1078,237.03,237.0,1.11046555]
[1733667282972,2.1078,237.03,236.99,2.1081]
[1733667283173,2.1078,237.03,237.0,1.11034474]
[1733667283375,2.1078,237.03,237.01,1.11034474]
[1733667283569,2.1078,237.03,236.99,2.1081]
[1733667283876,2.1079,237.02,237.0,1.11038954]
[1733667284072,2.1079,237.02,237.01,1.11038954]
[1733667285066,2.1079,237.02,237.01,1.11054376]
[1733667287272,1.92,237.07,236.98,1.92]
[1733667287273,2.1081,237.0,236.98,1.92]
[1733667287473,2.1081,237.0,236.99,1.11070754]
[1733667288275,2.108,237.01,236.99,1.11070754]
[1733667288474,2.108,237.01,237.0,1.11073406]
[1733667291969,2.108,237.01,237.0,1.11097111]
[1733667292766,2.1081,237.01,236.98,1.92]
[1733667292973,1.92,237.07,236.98,1.92]
[1733667293176,1.2916,237.06,236.98,1.92]
[1733667293673,2.1078,237.04,236.98,1.92]
[1733667293975,1.2916,237.06,236.98,1.92]
[1733667295168,2.1078,237.04,236.98,4.0282]
[1733667295374,1.2916,237.06,236.99,1.11097696]
[1733667295574,1.2916,237.06,236.98,4.0282]
[1733667295775,2.1079,237.02,236.99,1.11113843]
[1733667295967,2.1079,237.02,236.98,4.0282]
[1733667296174,2.1079,237.02,236.99,1.11125634]
[1733667296477,2.1079,237.02,236.98,2.1082]
[1733667297579,2.1079,237.02,236.99,1.11158507]
[1733667297768,2.1079,237.02,236.98,2.1082]
[1733667298075,2.1079,237.02,236.99,1.11158248]
[1733667298375,2.1079,237.02,236.98,2.1082]
[1733667298577,2.1079,237.02,236.99,1.11170595]
[1733667298778,2.1079,237.02,236.98,2.1082]
[1733667298978,2.1079,237.02,236.99,1.11166857]
[1733667299179,2.1079,237.02,236.98,2.1082]
[1733667299478,2.1079,237.02,236.99,1.1116582]
[1733667299681,2.1079,237.02,236.98,2.1082]
[1733667299877,2.1079,237.02,236.99,1.1117671]
[1733667300076,2.1079,237.02,236.98,2.1082]
[1733667300380,2.1081,237.0,236.99,1.11177272]
[1733667301174,1.2916,237.06,236.99,1.11177272]
[1733667301374,2.1079,237.02,237.0,1.11195239]
[1733667301579,2.1079,237.02,237.01,1.11195239]
[1733667301975,2.1079,237.02,236.98,2.1082]
[1733667302170,2.1079,237.02,236.99,1.11194571]
[1733667302371,2.1079,237.02,236.98,2.1082]
[1733667302576,2.1079,237.02,237.0,1.11197027]
[1733667302876,2.1079,237.02,236.98,2.1082]
[1733667303079,2.1077,237.04,236.99,3.22013007]
[1733667303383,2.1077,237.04,237.0,1.11203007]
[1733667303680,2.1077,237.04,236.99,2.1081]
[1733667303880,2.1077,237.04,237.0,1.11204224]
[1733667304083,2.1077,237.04,236.99,2.1081]
[1733667304385,2.1077,237.04,237.0,1.11201289]
[1733667304582,2.1077,237.04,236.99,2.1081]
[1733667304781,2.1077,237.04,237.0,1.11195383]
[1733667304977,2.1077,237.04,236.94,1.92]
[1733667304978,2.1078,237.03,236.98,2.1082]
[1733667305180,2.1078,237.03,236.99,1.1119713]
[1733667305380,2.1078,237.03,237.0,1.1119713]
[1733667305681,2.1078,237.03,236.98,2.1082]
[1733667305880,2.1078,237.03,236.99,1.11204328]
[1733667306073,2.1078,237.03,237.0,1.11204328]
[1733667306278,2.1078,237.03,236.98,2.1082]
[1733667306474,2.1078,237.03,236.99,1.11202847]
[1733667306775,2.1078,237.03,237.0,1.11202847]
[1733667307085,2.1078,237.03,236.98,2.1082]
[1733667307386,2.1079,237.02,236.99,1.11210497]
[1733667307682,2.1079,237.02,236.98,2.1082]
[1733667307882,2.1079,237.02,236.99,1.11206287]
[1733667308082,2.1079,237.02,236.98,2.1082]
[1733667308283,2.108,237.01,236.99,1.1120632]
[1733667308487,2.108,237.01,236.96,2.1083]
[1733667308678,2.108,237.01,236.97,3.94673282]
[1733667308876,2.108,237.01,236.98,1.11202923]
[1733667309081,2.108,237.01,236.99,1.11202923]
[1733667309377,1.2916,237.06,236.95,1.92]
[1733667309582,1.2916,237.06,236.96,5.63448469]
[1733667309783,1.2916,237.06,236.97,3.94657304]
[1733667310084,1.2916,237.06,236.98,2.16691273]
[1733667310284,1.2916,237.06,236.99,1.11196795]
[1733667310488,1.2916,237.06,237.0,1.11196795]
[1733667310784,1.2916,237.06,236.95,4.0285]
[1733667310976,1.2916,237.06,236.96,8.45521251]
[1733667311179,1.2916,237.06,236.97,3.9466456]
[1733667311180,2.1082,236.99,236.97,3.9466456]
[1733667311485,2.1082,236.99,236.98,1.11199728]
[1733667312283,2.1083,236.99,236.94,2.1086]
[1733667312586,1.2916,237.06,236.95,3.9470524]
[1733667312785,1.2916,237.06,236.96,3.9470524]
[1733667312987,2.1083,236.98,236.97,1.11209254]
[1733667313782,1.2916,237.06,236.97,1.11209254]
[1733667313986,1.2916,237.06,236.98,1.11209254]
[1733667314181,1.2916,237.06,236.99,1.11209254]
[1733667314381,1.2916,237.06,237.0,1.11209254]
[1733667314584,1.2916,237.06,237.01,1.11209254]
[1733667314585,2.1079,237.02,237.01,1.11209254]
[1733667315680,1.2916,237.06,237.01,1.11209254]
[1733667315681,2.1078,237.04,237.01,1.11209254]
[1733667315877,1.2916,237.06,236.98,2.1082]
[1733667316080,1.2916,237.06,236.97,1.92]
[1733667316282,2.1075,237.06,237.0,2.108]
[1733667316476,2.1075,237.06,237.01,1.11203927]
[1733667316678,2.1075,237.06,236.97,1.92]
[1733667316881,2.1074,237.08,236.98,8.4562395]
[1733667317079,2.1074,237.08,236.99,8.4562395]
[1733667317279,2.1074,237.08,237.0,3.947132]
[1733667317481,2.1074,237.08,237.01,2.16709531]
[1733667317680,2.1073,237.1,237.02,1.11220315]
[1733667317881,2.1073,237.1,236.97,1.92]
[1733667318080,2.1073,237.1,236.98,8.45656804]
[1733667318281,2.1073,237.1,236.99,6.76879438]
[1733667318492,2.1073,237.1,237.0,5.24353814]
[1733667318690,2.1073,237.1,237.01,1.11229533]
[1733667318990,2.1073,237.1,237.02,3.03229533]
[1733667319184,2.1073,237.1,237.03,3.94652015]
[1733667319388,2.1073,237.1,237.04,3.21964971]
[1733667319590,2.1073,237.1,237.05,1.11204971]
[1733667319788,2.1073,237.1,237.04,2.1076]
[1733667320188,2.1073,237.1,237.05,1.1119109]
[1733667320389,2.1073,237.1,237.04,2.1076]
[1733667320587,2.1073,237.1,237.05,1.11177908]
[1733667320789,2.1073,237.1,237.04,2.1076]
[1733667320988,2.1073,237.1,237.05,1.1117092]
[1733667321190,2.1073,237.1,237.04,2.1076]
[1733667321390,2.1073,237.1,237.05,1.11157386]
[1733667321586,2.1073,237.1,237.04,2.1076]
[1733667321797,2.1073,237.09,237.05,1.11160364]
[1733667321990,2.1073,237.09,237.04,2.1076]
[1733667322191,2.1073,237.09,237.05,1.11159909]
[1733667322490,2.1073,237.09,237.04,2.1076]
[1733667323193,1.385,237.12,237.02,1.92]
[1733667323498,1.385,237.12,237.03,1.11142474]
[1733667323689,2.1075,237.07,237.02,1.92]
[1733667323890,2.1075,237.07,237.03,1.11145448]
[1733667324095,1.385,237.12,237.02,1.92]
[1733667324295,1.385,237.12,237.03,3.21924563]
[1733667324496,1.385,237.12,237.03,2.1078]
[1733667324694,1.385,237.12,237.04,1.11134742]
[1733667324996,2.1073,237.09,237.04,2.1077]
[1733667325494,2.1073,237.09,237.05,1.11130167]
[1733667325688,1.385,237.12,237.02,1.92]
[1733667325893,2.1071,237.11,237.06,2.1075]
[1733667326703,2.1071,237.11,237.07,1.11099843]
[1733667326893,2.1071,237.11,237.06,2.1075]
[1733667327094,2.1071,237.11,237.07,1.11097954]
[1733667327295,2.1071,237.11,237.06,2.1075]
[1733667327493,2.1071,237.11,237.07,1.11074996]
[1733667327693,2.1071,237.11,237.06,2.1075]
[1733667327890,2.1071,237.11,237.07,1.11074149]
[1733667328087,2.1071,237.11,237.06,2.1075]
[1733667329592,2.1072,237.1,237.05,2.1076]
[1733667329894,1.9,237.16,237.05,1.9]
[1733667330092,1.9,237.16,237.01,1.9]
[1733667330298,1.9,237.16,237.02,6.05046737]
[1733667330494,1.9,237.16,237.03,1.11052341]
[1733667330701,1.9,237.16,237.04,1.11052341]
[1733667330901,1.9,237.16,237.02,2.1079]
[1733667331197,1.9,237.16,237.01,1.9]
[1733667331397,1.9,237.16,237.02,1.11053453]
[1733667331607,2.1071,237.12,237.01,1.9]
[1733667331902,1.9,237.11,237.02,1.1105378]
[1733667332093,1.9,237.11,237.01,1.9]
[1733667332292,1.9,237.11,237.02,1.11054209]
[1733667332499,1.9,237.11,237.0,3.4043]
[1733667332500,1.9,237.11,237.0,1.2962]
[1733667332699,1.3366,237.1,237.01,1.11050698]
[1733667332896,1.3366,237.1,237.0,1.2962]
[1733667333104,1.3366,237.1,237.01,1.1105013]
[1733667333303,2.1078,237.03,237.0,1.2962]
[1733667333604,2.1078,237.03,237.01,1.11049983]
[1733667333801,2.1078,237.03,237.0,1.2962]
[1733667334005,2.1078,237.03,237.01,1.11049972]
[1733667334218,2.1078,237.03,237.0,1.2962]
[1733667334412,2.1078,237.03,237.01,1.1104828]
[1733667334613,2.1078,237.03,236.99,2.1081]
[1733667334814,2.1078,237.03,237.0,1.11048899]
[1733667335014,2.1078,237.03,237.01,1.11048899]
[1733667335218,2.1078,237.03,236.99,2.1081]
[1733667335422,2.1075,237.07,237.0,1.11047495]
[1733667335614,1.3221,237.09,236.98,1.9]
[1733667335815,1.3221,237.09,236.99,1.11045991]
[1733667336114,1.3221,237.09,237.0,1.11045991]
[1733667336420,1.3221,237.09,236.98,1.9]
[1733667336919,1.3221,237.09,236.99,1.11043542]
[1733667337120,1.3221,237.09,237.0,1.11043542]
[1733667337315,1.3221,237.09,236.98,1.9]
[1733667337517,1.3221,237.09,236.99,1.11046266]
[1733667337718,2.1078,237.03,237.0,1.11046266]
[1733667337917,2.1078,237.03,236.98,4.0082]
[1733667338117,2.1078,237.03,236.99,1.11048191]
[1733667338311,2.1078,237.03,237.0,1.11048191]
[1733667338516,2.1078,237.03,236.98,4.0082]
[1733667338715,2.1078,237.03,236.99,1.11049506]
[1733667338918,2.1078,237.03,237.0,1.11049506]
[1733667339117,2.1078,237.03,236.99,2.1082]
[1733667339118,2.1077,237.05,237.01,1.11051376]
[1733667339318,2.1077,237.05,236.98,1.9]
[1733667339513,2.1077,237.05,237.0,2.108]
[1733667339712,2.1077,237.05,237.01,1.11053463]
[1733667339917,2.1077,237.05,237.02,1.11053463]
[1733667340116,2.1077,237.05,236.98,1.9]
[1733667340320,2.1076,237.06,237.02,2.1079]
[1733667340517,2.1076,237.06,237.03,1.11041046]
[1733667340717,2.1076,237.06,237.04,1.11041046]